[Event "Caplin Hastings Masters 2023-24"]
[Site "Hastings"]
[Date "2023.12.28"]
[Round "1.24"]
[White "Ahn, Sungmin"]
[Black "Fischer, Daniel"]
[Result "1/2-1/2"]
[ECO "B33"]
[WhiteElo "1836"]
[BlackElo "2341"]
[Annotator "ChessBase"]
[PlyCount "61"]
[EventDate "2023.12.18"]
[EventType "swiss"]
[EventCountry "ENG"]
[SourceTitle "playchess.com"]
[Source "ChessBase"]
[SourceQuality "1"]
[TimeControl "40/6000+30:3000+30"]

1. e4 {[%emt 0:00:29]} c5 {[%emt 0:00:06]} 2. Nf3 {[%emt 0:00:10]} Nc6 {[%emt 0:00:22]} 3. d4 {[%emt 0:00:08]} cxd4 {[%emt 0:00:07]} 4. Nxd4 {[%emt 0:00:03]} Nf6 {[%emt 0:00:59]} 5. Nc3 {[%emt 0:00:13]} e5 {[%emt 0:00:33]} 6. Ndb5 {[%emt 0:00:37]} d6 {[%emt 0:00:06]} 7. Nd5 {[%emt 0:02:45]} Nxd5 {[%emt 0:00:07]} 8. exd5 {[%emt 0:00:15]} Nb8 {[%emt 0:00:04]} 9. c4 {[%emt 0:03:42]} Be7 {[%emt 0:00:41]} 10. Bd3 {[%emt 0:06:30]} O-O {[%emt 0:03:08]} 11. O-O {[%emt 0:07:17]} Nd7 {[%emt 0:05:54]} 12. Be3 {[%emt 0:08:03]} a6 {[%emt 0:02:30]} 13. Nc3 {[%emt 0:00:32]} f5 {[%emt 0:02:44]} 14. f3 {[%emt 0:08:27]} Bg5 {[%emt 0:05:52]} 15. Bf2 {[%emt 0:02:39]} Bh4 {[%emt 0:05:49]} 16. g3 {[%emt 0:12:04]} Bg5 {[%emt 0:03:19]} 17. b4 {[%emt 0:02:39]} b6 {[%emt 0:15:30]} 18. a4 {[%emt 0:21:54]} a5 {[%emt 0:04:21]} 19. Nb5 {[%emt 0:01:48]} Be7 {[%emt 0:07:35]} 20. c5 {[%emt 0:05:40]} bxc5 {[%emt 0:09:12]} 21. bxc5 {[%emt 0:00:13]} Nxc5 {[%emt 0:02:09]} 22. Bxc5 {[%emt 0:02:02]} dxc5 {[%emt 0:00:06]} 23. d6 {[%emt 0:02:40]} Bf6 {[%emt 0:02:00]} 24. Bc4+ {[%emt 0:04:35]} Kh8 {[%emt 0:00:18]} 25. Qd5 {[%emt 0:00:41]} Bd7 {[%emt 0:06:50]} 26. Nc7 {[%emt 0:01:37]} Rb8 {[%emt 0:03:58]} 27. Qxc5 {[%emt 0:00:38]} e4 {[%emt 0:03:55]} 28. Ra2 {[%emt 0:04:01]} exf3 {[%emt 0:03:53]} 29. Rxf3 {[%emt 0:01:40]} Qc8 {[%emt 0:09:53]} 30. Bb5 {[%emt 0:02:11]} Qb7 {[%emt 0:01:50]} 31. Re3 {[%emt 0:03:06]} 1/2-1/2

[Event "Caplin Hastings Masters 2023-24"]
[Site "Hastings"]
[Date "2023.12.28"]
[Round "1.25"]
[White "Waldhausen Gordon, Frederick"]
[Black "Ruane, Brendan J"]
[Result "1-0"]
[ECO "A41"]
[WhiteElo "2338"]
[BlackElo "1823"]
[Annotator "ChessBase"]
[PlyCount "75"]
[EventDate "2023.12.18"]
[EventType "swiss"]
[EventCountry "ENG"]
[SourceTitle "playchess.com"]
[Source "ChessBase"]
[SourceQuality "1"]
[TimeControl "40/6000+30:3000+30"]

1. e4 {[%emt 0:00:01]} g6 {[%emt 0:00:18]} 2. d4 {[%emt 0:00:12]} Bg7 {[%emt 0:00:09]} 3. Nf3 {[%emt 0:00:09]} d6 {[%emt 0:00:10]} 4. c4 {[%emt 0:00:28]} Bg4 {[%emt 0:01:06]} 5. Be2 {[%emt 0:00:30]} c5 {[%emt 0:01:00]} 6. d5 {[%emt 0:01:28]} Nd7 {[%emt 0:01:12]} 7. O-O {[%emt 0:01:06]} Qb6 {[%emt 0:06:46]} 8. Nbd2 {[%emt 0:02:01]} Ngf6 {[%emt 0:11:52]} 9. h3 {[%emt 0:02:55]} Bxf3 {[%emt 0:00:08]} 10. Bxf3 {[%emt 0:00:04]} Ne5 {[%emt 0:03:44]} 11. Be2 {[%emt 0:01:09]} g5 {[%emt 0:00:25]} 12. Qa4+ {[%emt 0:02:46]} Nfd7 {[%emt 0:01:08]} 13. Nf3 {[%emt 0:00:49]} Nxf3+ {[%emt 0:04:34]} 14. Bxf3 {[%emt 0:00:11]} Qb4 {[%emt 0:00:20]} 15. Qxb4 {[%emt 0:06:14]} cxb4 {[%emt 0:00:07]} 16. a3 {[%emt 0:00:10]} b3 {[%emt 0:06:23]} 17. Bxg5 {[%emt 0:05:01]} Bxb2 {[%emt 0:00:17]} 18. Rab1 {[%emt 0:00:16]} Bxa3 {[%emt 0:00:36]} 19. Rxb3 {[%emt 0:00:59]} Bc5 {[%emt 0:00:11]} 20. Rxb7 {[%emt 0:06:04]} f6 {[%emt 0:01:04]} 21. Bd2 {[%emt 0:12:07]} Bb6 {[%emt 0:01:34]} 22. Ra1 {[%emt 0:00:31]} h5 {[%emt 0:01:08]} 23. Be2 {[%emt 0:09:52]} O-O-O {[%emt 0:07:42]} 24. Rbxa7 {[%emt 0:01:24]} Bxa7 {[%emt 0:00:10]} 25. Rxa7 {[%emt 0:00:02]} Kb8 {[%emt 0:00:56]} 26. Be3 {[%emt 0:00:20]} Rh7 {[%emt 0:04:13]} 27. f4 {[%emt 0:02:33]} Nc5 {[%emt 0:00:21]} 28. Bxc5 {[%emt 0:00:07]} dxc5 {[%emt 0:00:02]} 29. Ra5 {[%emt 0:00:08]} Rc8 {[%emt 0:00:49]} 30. Rb5+ {[%emt 0:00:32]} Ka7 {[%emt 0:00:24]} 31. h4 {[%emt 0:00:29]} Rhh8 {[%emt 0:04:09]} 32. Bf3 {[%emt 0:01:07]} Rc7 {[%emt 0:11:26]} 33. Kf2 {[%emt 0:01:06]} e5 {[%emt 0:02:45]} 34. dxe6 {[%emt 0:00:56]} Rd8 {[%emt 0:00:09]} 35. Ke3 {[%emt 0:00:22]} Rd4 {[%emt 0:00:33]} 36. Rxc5 {[%emt 0:00:27]} Rxe4+ {[%emt 0:00:20]} 37. Bxe4 {[%emt 0:00:18]} Rxc5 {[%emt 0:00:04]} 38. e7 {[%emt 0:00:09]} 1-0

[Event "Caplin Hastings Masters 2023-24"]
[Site "Hastings"]
[Date "2023.12.28"]
[Round "1.27"]
[White "Vestby-Ellingsen, Mads"]
[Black "Larkin, Benjamin"]
[Result "1-0"]
[ECO "D85"]
[WhiteElo "2329"]
[BlackElo "1814"]
[Annotator "ChessBase"]
[PlyCount "85"]
[EventDate "2023.12.18"]
[EventType "swiss"]
[EventCountry "ENG"]
[SourceTitle "playchess.com"]
[Source "ChessBase"]
[SourceQuality "1"]
[TimeControl "40/6000+30:3000+30"]

1. d4 {[%emt 0:00:13]} Nf6 {[%emt 0:00:07]} 2. c4 {[%emt 0:00:13]} g6 {[%emt 0:00:03]} 3. Nc3 {[%emt 0:00:12]} d5 {[%emt 0:00:03]} 4. cxd5 {[%emt 0:00:13]} Nxd5 {[%emt 0:00:03]} 5. Bd2 {[%emt 0:00:17]} Nxc3 {[%emt 0:03:11]} 6. Bxc3 {[%emt 0:00:27]} Bg7 {[%emt 0:00:04]} 7. e4 {[%emt 0:02:09]} O-O {[%emt 0:00:13]} 8. Qd2 {[%emt 0:00:13]} c5 {[%emt 0:02:20]} 9. d5 {[%emt 0:00:17]} e6 {[%emt 0:06:52]} 10. Bc4 {[%emt 0:02:42]} exd5 {[%emt 0:03:44]} 11. Bxd5 {[%emt 0:00:23]} Nd7 {[%emt 0:02:18]} 12. Bxg7 {[%emt 0:00:20]} Kxg7 {[%emt 0:00:03]} 13. Ne2 {[%emt 0:00:32]} Nf6 {[%emt 0:08:14]} 14. O-O-O {[%emt 0:00:31]} Nxd5 {[%emt 0:01:00]} 15. exd5 {[%emt 0:00:29]} b6 {[%emt 0:08:00]} 16. Nc3 {[%emt 0:02:15]} Bb7 {[%emt 0:03:44]} 17. h4 {[%emt 0:06:05]} Qd7 {[%emt 0:03:22]} 18. h5 {[%emt 0:05:03]} Rae8 {[%emt 0:03:22]} 19. f3 {[%emt 0:19:18]} Re5 {[%emt 0:02:39]} 20. g4 {[%emt 0:26:36]} Rfe8 {[%emt 0:11:31]} 21. hxg6 {[%emt 0:07:13]} fxg6 {[%emt 0:00:14]} 22. Ne4 {[%emt 0:01:51]} Rxe4 {[%emt 0:04:52]} 23. fxe4 {[%emt 0:01:18]} Rxe4 {[%emt 0:01:17]} 24. Kb1 {[%emt 0:16:35]} Rd4 {[%emt 0:11:06]} 25. Qh2 {[%emt 0:03:29]} Kg8 {[%emt 0:05:58]} 26. Rxd4 {[%emt 0:08:06]} cxd4 {[%emt 0:00:17]} 27. Rf1 {[%emt 0:00:33]} d3 {[%emt 0:04:32]} 28. Qf4 {[%emt 0:02:55]} Qe8 {[%emt 0:00:43]} 29. d6 {[%emt 0:01:42]} Bc8 {[%emt 0:01:34]} 30. Qc4+ {[%emt 0:02:17]} Be6 {[%emt 0:00:33]} 31. Qxd3 {[%emt 0:00:58]} Bxg4 {[%emt 0:00:06]} 32. Ka1 {[%emt 0:00:33]} Bf5 {[%emt 0:02:02]} 33. Qd5+ {[%emt 0:00:17]} Kg7 {[%emt 0:01:31]} 34. a3 {[%emt 0:00:27]} Kf6 {[%emt 0:00:37]} 35. Qd4+ {[%emt 0:00:44]} Kf7 {[%emt 0:00:24]} 36. Qc4+ {[%emt 0:00:30]} Qe6 {[%emt 0:02:38]} 37. Qc7+ {[%emt 0:00:17]} Ke8 {[%emt 0:00:07]} 38. Qb8+ {[%emt 0:00:36]} Kd7 {[%emt 0:00:39]} 39. Qc7+ {[%emt 0:00:32]} Ke8 {[%emt 0:00:02]} 40. Qb8+ {[%emt 0:00:35]} Kd7 {[%emt 0:00:09]} 41. Qxa7+ {[%emt 0:50:29]} Kxd6 {[%emt 0:50:28]} 42. Rd1+ {[%emt 0:00:00]} Ke5 {[%emt 0:00:00]} 43. Qc7+ {[%emt 0:00:00]} 1-0

[Event "Caplin Hastings Masters 2023-24"]
[Site "Hastings"]
[Date "2023.12.28"]
[Round "1.28"]
[White "Damodaran, Patrick"]
[Black "Rudd, Jack"]
[Result "0-1"]
[ECO "E39"]
[WhiteElo "1798"]
[BlackElo "2314"]
[Annotator "ChessBase"]
[PlyCount "124"]
[EventDate "2023.12.18"]
[EventType "swiss"]
[EventCountry "ENG"]
[SourceTitle "playchess.com"]
[Source "ChessBase"]
[SourceQuality "1"]
[TimeControl "40/6000+30:3000+30"]

1. d4 {[%emt 0:00:04]} Nf6 {[%emt 0:00:04]} 2. c4 {[%emt 0:00:10]} e6 {[%emt 0:00:05]} 3. Nc3 {[%emt 0:00:08]} Bb4 {[%emt 0:00:03]} 4. Qc2 {[%emt 0:00:22]} c5 {[%emt 0:00:05]} 5. dxc5 {[%emt 0:00:47]} Nc6 {[%emt 0:00:07]} 6. Nf3 {[%emt 0:00:55]} O-O {[%emt 0:00:13]} 7. Bf4 {[%emt 0:00:55]} Bxc5 {[%emt 0:00:56]} 8. a3 {[%emt 0:01:27]} d5 {[%emt 0:00:59]} 9. cxd5 {[%emt 0:03:59]} exd5 {[%emt 0:00:20]} 10. Bg5 {[%emt 0:05:05]} Qb6 {[%emt 0:02:13]} 11. e3 {[%emt 0:02:41]} d4 {[%emt 0:00:48]} 12. Bxf6 {[%emt 0:01:19]} gxf6 {[%emt 0:00:18]} 13. Nd5 {[%emt 0:02:44]} Qa5+ {[%emt 0:00:17]} 14. Nd2 {[%emt 0:00:56]} dxe3 {[%emt 0:02:26]} 15. fxe3 {[%emt 0:03:50]} Rd8 {[%emt 0:02:59]} 16. Bc4 {[%emt 0:09:16]} Be6 {[%emt 0:02:12]} 17. Nxf6+ {[%emt 0:01:03]} Kf8 {[%emt 0:01:21]} 18. O-O-O {[%emt 0:08:22]} Bxe3 {[%emt 0:00:55]} 19. Bxe6 {[%emt 0:00:58]} Nd4 {[%emt 0:01:42]} 20. Nxh7+ {[%emt 0:04:44]} Kg7 {[%emt 0:00:51]} 21. Qc3 {[%emt 0:03:51]} Qxc3+ {[%emt 0:00:19]} 22. bxc3 {[%emt 0:00:17]} Nxe6 {[%emt 0:00:05]} 23. Rhf1 {[%emt 0:01:21]} Rxd2 {[%emt 0:00:08]} 24. Rxd2 {[%emt 0:01:47]} Rd8 {[%emt 0:00:08]} 25. Nf6 {[%emt 0:02:59]} Rxd2 {[%emt 0:00:23]} 26. Kb1 {[%emt 0:00:50]} Rxg2 {[%emt 0:00:21]} 27. Rf3 {[%emt 0:01:27]} Bg5 {[%emt 0:00:29]} 28. Ne8+ {[%emt 0:00:29]} Kg6 {[%emt 0:00:09]} 29. Nd6 {[%emt 0:00:45]} Bf4 {[%emt 0:00:15]} 30. Nxb7 {[%emt 0:00:48]} Rxh2 {[%emt 0:00:07]} 31. c4 {[%emt 0:01:00]} Be5 {[%emt 0:00:41]} 32. Kc1 {[%emt 0:00:59]} Nd4 {[%emt 0:01:18]} 33. Rd3 {[%emt 0:01:28]} Rc2+ {[%emt 0:00:08]} 34. Kd1 {[%emt 0:00:52]} Rxc4 {[%emt 0:00:09]} 35. Na5 {[%emt 0:00:15]} Rc5 {[%emt 0:00:21]} 36. Nb7 {[%emt 0:00:34]} Rb5 {[%emt 0:00:08]} 37. Nd8 {[%emt 0:00:58]} Rb8 {[%emt 0:00:08]} 38. Nxf7 {[%emt 0:00:43]} Kxf7 {[%emt 0:00:07]} 39. Kd2 {[%emt 0:01:29]} Rb2+ {[%emt 0:00:07]} 40. Kc3 {[%emt 0:00:39]} Rb3+ {[%emt 0:00:27]} 41. Kc4 {[%emt 0:51:11]} Rxd3 {[%emt 0:50:06]} 42. Kxd3 {[%emt 0:00:05]} Ke6 {[%emt 0:00:06]} 43. Kc4 {[%emt 0:00:04]} Kd6 {[%emt 0:00:06]} 44. Kb4 {[%emt 0:00:20]} Kc6 {[%emt 0:00:09]} 45. Ka5 {[%emt 0:00:36]} Bc7+ {[%emt 0:00:10]} 46. Ka4 {[%emt 0:00:24]} Bd6 {[%emt 0:00:10]} 47. Ka5 {[%emt 0:00:24]} Bxa3 {[%emt 0:00:11]} 48. Ka6 {[%emt 0:00:39]} Bc5 {[%emt 0:00:07]} 49. Ka5 {[%emt 0:00:04]} Ne6 {[%emt 0:00:08]} 50. Ka6 {[%emt 0:00:15]} Nc7+ {[%emt 0:00:08]} 51. Ka5 {[%emt 0:00:05]} Bb6+ {[%emt 0:00:06]} 52. Kb4 {[%emt 0:00:07]} a5+ {[%emt 0:00:06]} 53. Ka4 {[%emt 0:00:03]} Ne6 {[%emt 0:00:07]} 54. Ka3 {[%emt 0:00:09]} Kb5 {[%emt 0:00:05]} 55. Kb3 {[%emt 0:00:06]} a4+ {[%emt 0:00:05]} 56. Ka3 {[%emt 0:00:06]} Bc5+ {[%emt 0:00:09]} 57. Kb2 {[%emt 0:00:07]} Kb4 {[%emt 0:00:06]} 58. Ka2 {[%emt 0:00:18]} a3 {[%emt 0:00:05]} 59. Kb1 {[%emt 0:00:11]} Kb3 {[%emt 0:00:06]} 60. Ka1 {[%emt 0:00:14]} Be3 {[%emt 0:00:06]} 61. Kb1 {[%emt 0:00:09]} a2+ {[%emt 0:00:05]} 62. Ka1 {[%emt 0:00:02]} Bd4# {[%emt 0:00:37]} 0-1

[Event "Caplin Hastings Masters 2023-24"]
[Site "Hastings"]
[Date "2023.12.28"]
[Round "1.29"]
[White "Lux, Hugo de Melo"]
[Black "Gibbs, Dominic V"]
[Result "1-0"]
[ECO "C10"]
[WhiteElo "2311"]
[BlackElo "1795"]
[Annotator "ChessBase"]
[PlyCount "119"]
[EventDate "2023.12.18"]
[EventType "swiss"]
[EventCountry "ENG"]
[SourceTitle "playchess.com"]
[Source "ChessBase"]
[SourceQuality "1"]
[TimeControl "40/6000+30:3000+30"]

1. e4 {[%emt 0:00:05]} e6 {[%emt 0:00:06]} 2. d4 {[%emt 0:01:07]} d5 {[%emt 0:00:07]} 3. Nc3 {[%emt 0:00:10]} dxe4 {[%emt 0:00:10]} 4. Nxe4 {[%emt 0:00:09]} Nd7 {[%emt 0:00:08]} 5. Nf3 {[%emt 0:04:15]} Ngf6 {[%emt 0:06:38]} 6. Nxf6+ {[%emt 0:06:28]} Nxf6 {[%emt 0:00:00]} 7. Bd3 {[%emt 0:00:11]} c5 {[%emt 0:00:00]} 8. O-O {[%emt 0:06:34]} cxd4 {[%emt 0:00:00]} 9. Nxd4 {[%emt 0:00:28]} Bc5 {[%emt 0:00:00]} 10. Nb3 {[%emt 0:11:51]} Bd6 {[%emt 0:00:00]} 11. c4 {[%emt 0:10:27]} Qc7 {[%emt 0:00:00]} 12. h3 {[%emt 0:01:25]} O-O {[%emt 0:16:42]} 13. Bg5 {[%emt 0:09:27]} Be7 {[%emt 0:20:33]} 14. Qf3 {[%emt 0:06:58]} Bd7 {[%emt 0:07:13]} 15. Qe3 {[%emt 0:12:03]} Rfd8 {[%emt 0:06:15]} 16. Rfd1 {[%emt 0:10:21]} Ba4 {[%emt 0:02:34]} 17. Rac1 {[%emt 0:01:02]} h6 {[%emt 0:10:08]} 18. Bf4 {[%emt 0:07:53]} Bd6 {[%emt 0:00:37]} 19. Bxd6 {[%emt 0:02:07]} Rxd6 {[%emt 0:00:26]} 20. Be2 {[%emt 0:01:17]} b6 {[%emt 0:03:49]} 21. Rxd6 {[%emt 0:12:02]} Qxd6 {[%emt 0:00:02]} 22. c5 {[%emt 0:04:09]} bxc5 {[%emt 0:03:56]} 23. Qxc5 {[%emt 0:00:13]} Qb6 {[%emt 0:04:16]} 24. Qxb6 {[%emt 0:01:15]} axb6 {[%emt 0:00:05]} 25. Nd2 {[%emt 0:00:08]} Bd7 {[%emt 0:10:05]} 26. a3 {[%emt 0:00:11]} Rc8 {[%emt 0:02:04]} 27. Rxc8+ {[%emt 0:00:01]} Bxc8 {[%emt 0:00:02]} 28. Bf3 {[%emt 0:01:12]} Ba6 {[%emt 0:04:55]} 29. Bc6 {[%emt 0:00:01]} Kf8 {[%emt 0:01:00]} 30. b4 {[%emt 0:00:09]} Bd3 {[%emt 0:00:22]} 31. Nf3 {[%emt 0:01:42]} Ke7 {[%emt 0:04:30]} 32. Ne5 {[%emt 0:00:11]} Be4 {[%emt 0:04:53]} 33. Bb5 {[%emt 0:00:20]} Nd5 {[%emt 0:00:50]} 34. f3 {[%emt 0:00:13]} Nc3 {[%emt 0:01:04]} 35. fxe4 {[%emt 0:01:16]} Nxb5 {[%emt 0:00:10]} 36. Nc4 {[%emt 0:00:05]} Kd8 {[%emt 0:01:32]} 37. a4 {[%emt 0:00:16]} Nc3 {[%emt 0:00:08]} 38. Nxb6 {[%emt 0:00:09]} Kc7 {[%emt 0:00:30]} 39. a5 {[%emt 0:00:11]} Nxe4 {[%emt 0:00:25]} 40. Nc4 {[%emt 0:00:18]} Nc3 {[%emt 0:03:08]} 41. Kf2 {[%emt 0:25:02]} f6 {[%emt 0:01:31]} 42. Na3 {[%emt 0:00:49]} Kc6 {[%emt 0:07:12]} 43. a6 {[%emt 0:09:09]} Kb6 {[%emt 0:02:35]} 44. b5 {[%emt 0:00:27]} Ne4+ {[%emt 0:13:04]} 45. Ke3 {[%emt 0:01:08]} Nd6 {[%emt 0:00:16]} 46. Kd4 {[%emt 0:00:25]} h5 {[%emt 0:02:56]} 47. a7 {[%emt 0:13:29]} Kxa7 {[%emt 0:00:46]} 48. Kc5 {[%emt 0:00:04]} Nb7+ {[%emt 0:05:23]} 49. Kc6 {[%emt 0:00:01]} Kb8 {[%emt 0:00:20]} 50. Nc4 {[%emt 0:01:17]} e5 {[%emt 0:01:55]} 51. h4 {[%emt 0:00:18]} e4 {[%emt 0:06:54]} 52. Kd5 {[%emt 0:03:21]} f5 {[%emt 0:01:13]} 53. Ke5 {[%emt 0:01:20]} g6 {[%emt 0:00:47]} 54. g3 {[%emt 0:00:14]} Kc7 {[%emt 0:01:45]} 55. Kf6 {[%emt 0:00:33]} Nd6 {[%emt 0:01:07]} 56. Ne3 {[%emt 0:01:35]} f4 {[%emt 0:02:12]} 57. Nd5+ {[%emt 0:00:39]} Kb7 {[%emt 0:00:19]} 58. Nxf4 {[%emt 0:00:39]} e3 {[%emt 0:07:45]} 59. Kxg6 {[%emt 0:00:18]} Kb6 {[%emt 0:00:35]} 60. Nd5+ {[%emt 0:00:41]} 1-0

[Event "Caplin Hastings Masters 2023-24"]
[Site "Hastings"]
[Date "2023.12.28"]
[Round "1.30"]
[White "Flynn, David"]
[Black "Bozinakis, Pavlos"]
[Result "0-1"]
[ECO "B21"]
[WhiteElo "1791"]
[BlackElo "2274"]
[Annotator "ChessBase"]
[PlyCount "82"]
[EventDate "2023.12.18"]
[EventType "swiss"]
[EventCountry "ENG"]
[SourceTitle "playchess.com"]
[Source "ChessBase"]
[SourceQuality "1"]
[TimeControl "40/6000+30:3000+30"]

1. e4 {[%emt 0:00:02]} c5 {[%emt 0:00:26]} 2. Nc3 {[%emt 0:00:05]} e6 {[%emt 0:00:24]} 3. f4 {[%emt 0:00:09]} d5 {[%emt 0:04:04]} 4. Nf3 {[%emt 0:01:02]} dxe4 {[%emt 0:05:27]} 5. Nxe4 {[%emt 0:00:08]} Nf6 {[%emt 0:00:22]} 6. Bb5+ {[%emt 0:03:33]} Nbd7 {[%emt 0:04:42]} 7. Qe2 {[%emt 0:01:21]} a6 {[%emt 0:01:18]} 8. Bxd7+ {[%emt 0:02:33]} Bxd7 {[%emt 0:00:57]} 9. f5 {[%emt 0:04:53]} Nxe4 {[%emt 0:06:07]} 10. fxe6 {[%emt 0:16:58]} Bxe6 {[%emt 0:05:52]} 11. Qxe4 {[%emt 0:00:42]} Be7 {[%emt 0:04:14]} 12. d3 {[%emt 0:06:06]} O-O {[%emt 0:01:36]} 13. O-O {[%emt 0:08:39]} Bf6 {[%emt 0:03:38]} 14. Kh1 {[%emt 0:17:50]} Re8 {[%emt 0:04:17]} 15. Qf4 {[%emt 0:01:41]} Bd5 {[%emt 0:04:41]} 16. Be3 {[%emt 0:16:19]} Bxb2 {[%emt 0:09:20]} 17. Rab1 {[%emt 0:00:55]} Qf6 {[%emt 0:05:12]} 18. Qxf6 {[%emt 0:01:26]} Bxf6 {[%emt 0:00:09]} 19. Bxc5 {[%emt 0:00:07]} Rac8 {[%emt 0:04:38]} 20. d4 {[%emt 0:04:38]} b5 {[%emt 0:04:44]} 21. Kg1 {[%emt 0:03:53]} Bxa2 {[%emt 0:05:21]} 22. Ra1 {[%emt 0:02:07]} Bc4 {[%emt 0:00:12]} 23. Rfe1 {[%emt 0:00:06]} Rxe1+ {[%emt 0:01:35]} 24. Rxe1 {[%emt 0:00:05]} a5 {[%emt 0:07:35]} 25. Nd2 {[%emt 0:02:22]} Bd5 {[%emt 0:01:05]} 26. c3 {[%emt 0:01:00]} h5 {[%emt 0:04:52]} 27. Ne4 {[%emt 0:03:05]} Bxe4 {[%emt 0:01:08]} 28. Rxe4 {[%emt 0:00:04]} Rb8 {[%emt 0:03:33]} 29. Kf2 {[%emt 0:01:07]} b4 {[%emt 0:00:29]} 30. cxb4 {[%emt 0:00:59]} axb4 {[%emt 0:00:08]} 31. Re2 {[%emt 0:04:35]} b3 {[%emt 0:00:52]} 32. Rb2 {[%emt 0:00:03]} Rb5 {[%emt 0:00:32]} 33. Rb1 {[%emt 0:01:05]} b2 {[%emt 0:02:03]} 34. Ke2 {[%emt 0:02:08]} Bg5 {[%emt 0:02:42]} 35. Kd1 {[%emt 0:00:07]} Bc1 {[%emt 0:01:11]} 36. Kc2 {[%emt 0:00:48]} h4 {[%emt 0:03:41]} 37. Ba3 {[%emt 0:00:47]} Rg5 {[%emt 0:01:05]} 38. g3 {[%emt 0:04:03]} hxg3 {[%emt 0:01:41]} 39. hxg3 {[%emt 0:00:03]} Rxg3 {[%emt 0:00:10]} 40. Bxb2 {[%emt 0:00:04]} Bxb2 {[%emt 0:00:27]} 41. Kxb2 {[%emt 0:50:07]} Rd3 {[%emt 0:50:23]} 0-1

[Event "Caplin Hastings Masters 2023-24"]
[Site "Hastings"]
[Date "2023.12.28"]
[Round "1.31"]
[White "Sarkar, Justin"]
[Black "Verbytski, Oleg"]
[Result "1/2-1/2"]
[ECO "E92"]
[WhiteElo "2272"]
[BlackElo "1771"]
[Annotator "ChessBase"]
[PlyCount "76"]
[EventDate "2023.12.18"]
[EventType "swiss"]
[EventCountry "ENG"]
[SourceTitle "playchess.com"]
[Source "ChessBase"]
[SourceQuality "1"]
[TimeControl "40/6000+30:3000+30"]

1. d4 {[%emt 0:00:17]} Nf6 {[%emt 0:00:04]} 2. c4 {[%emt 0:00:09]} g6 {[%emt 0:00:04]} 3. Nc3 {[%emt 0:01:10]} Bg7 {[%emt 0:00:05]} 4. e4 {[%emt 0:00:09]} d6 {[%emt 0:00:03]} 5. Nf3 {[%emt 0:06:08]} O-O {[%emt 0:00:10]} 6. Be2 {[%emt 0:00:09]} e5 {[%emt 0:00:05]} 7. dxe5 {[%emt 0:05:37]} dxe5 {[%emt 0:00:06]} 8. Qxd8 {[%emt 0:00:03]} Rxd8 {[%emt 0:00:09]} 9. Bg5 {[%emt 0:00:03]} Re8 {[%emt 0:00:08]} 10. Nd5 {[%emt 0:00:06]} Nxd5 {[%emt 0:00:12]} 11. cxd5 {[%emt 0:00:04]} c6 {[%emt 0:01:59]} 12. Bc4 {[%emt 0:00:07]} cxd5 {[%emt 0:00:26]} 13. Bxd5 {[%emt 0:00:04]} Nd7 {[%emt 0:00:09]} 14. Nd2 {[%emt 0:00:27]} Nb6 {[%emt 0:01:14]} 15. Bb3 {[%emt 0:00:31]} Be6 {[%emt 0:04:09]} 16. Bxe6 {[%emt 0:24:52]} Rxe6 {[%emt 0:01:05]} 17. Rc1 {[%emt 0:00:11]} Rc8 {[%emt 0:02:16]} 18. Rxc8+ {[%emt 0:00:09]} Nxc8 {[%emt 0:00:04]} 19. Ke2 {[%emt 0:00:05]} Rc6 {[%emt 0:01:03]} 20. Kd3 {[%emt 0:00:13]} Nb6 {[%emt 0:10:39]} 21. b3 {[%emt 0:05:38]} f6 {[%emt 0:05:46]} 22. Be3 {[%emt 0:00:07]} Bf8 {[%emt 0:00:08]} 23. Nb1 {[%emt 0:04:27]} Bc5 {[%emt 0:04:27]} 24. Rc1 {[%emt 0:00:30]} Bxe3 {[%emt 0:00:07]} 25. Rxc6 {[%emt 0:00:03]} bxc6 {[%emt 0:00:07]} 26. Kxe3 {[%emt 0:00:17]} Kf7 {[%emt 0:00:52]} 27. Kd3 {[%emt 0:04:25]} Ke6 {[%emt 0:06:44]} 28. Nd2 {[%emt 0:00:07]} Kd6 {[%emt 0:21:14]} 29. a4 {[%emt 0:05:18]} c5 {[%emt 0:03:20]} 30. Nc4+ {[%emt 0:16:42]} Nxc4 {[%emt 0:00:09]} 31. Kxc4 {[%emt 0:00:06]} Kc6 {[%emt 0:00:48]} 32. g4 {[%emt 0:00:50]} g5 {[%emt 0:01:20]} 33. a5 {[%emt 0:01:27]} a6 {[%emt 0:00:10]} 34. f3 {[%emt 0:00:16]} h6 {[%emt 0:00:05]} 35. h3 {[%emt 0:00:45]} Kd6 {[%emt 0:00:02]} 36. Kc3 {[%emt 0:00:06]} Kc6 {[%emt 0:00:09]} 37. Kc4 {[%emt 0:00:02]} Kd6 {[%emt 0:00:12]} 38. Kd3 {[%emt 0:00:03]} Kc6 {[%emt 0:00:09]} 1/2-1/2